bitfinex-derivatives/quotes_BTCF0:USTF0_20241022
["timestamp","ask_amount","ask_price","bid_price","bid_amount"]
[1729624192955,0.05514147,67477.0,67476.0,0.184133]
[1729624193263,0.074113,67495.0,67476.0,0.184133]
[1729624193264,0.074114,67494.0,67488.0,0.07412]
[1729624193455,0.074114,67494.0,67488.0,0.54492]
[1729624193662,0.074114,67494.0,67488.0,0.8437616]
[1729624193663,0.09879638,67494.0,67488.0,0.8437616]
[1729624193861,0.09879638,67494.0,67488.0,0.94733575]
[1729624194263,0.09879638,67494.0,67488.0,0.73276953]
[1729624195262,0.02468238,67494.0,67488.0,0.72071757]
[1729624195464,0.074115,67493.0,67488.0,0.72071757]
[1729624195666,0.11,67492.0,67488.0,0.72071757]
[1729624196061,0.11,67492.0,67488.0,0.35991757]
[1729624196465,0.11,67492.0,67488.0,0.26432102]
[1729624196967,0.18634247,67489.0,67488.0,0.15432102]
[1729624197175,0.18634247,67489.0,67488.0,0.24304144]
[1729624197470,0.18634247,67489.0,67488.0,0.15432102]
[1729624198671,0.18634247,67489.0,67488.0,0.15468481]
[1729624199666,0.07634247,67489.0,67488.0,0.15468481]
[1729624201775,0.07634247,67489.0,67488.0,0.07412]
[1729624203068,0.18634247,67489.0,67488.0,0.07412]
[1729624203269,0.07634247,67489.0,67488.0,0.07412]
[1729624204879,0.07634247,67489.0,67488.0,0.14802973]
[1729624206079,0.07634247,67489.0,67488.0,0.22868153]
[1729624206080,0.00222347,67489.0,67488.0,0.22868153]
[1729624206276,0.00222347,67489.0,67488.0,0.154704]
[1729624206672,0.00222347,67489.0,67488.0,0.15459531]
[1729624207165,0.3608,67498.0,67496.0,0.07411]
[1729624207374,0.434909,67498.0,67497.0,0.18411]
[1729624207670,0.4590369,67498.0,67497.0,0.18411]
[1729624209764,0.5690369,67498.0,67497.0,0.18411]
[1729624212169,0.4590369,67498.0,67497.0,0.18411]
[1729624212973,0.3849279,67498.0,67497.0,0.18411]
[1729624213278,0.3849279,67498.0,67497.0,0.29411]
[1729624213490,0.074103,67504.0,67503.0,0.074104]
[1729624213779,0.074103,67504.0,67503.0,0.184104]
[1729624214174,0.0614,67510.0,67503.0,0.11]
[1729624214382,0.074101,67507.0,67506.0,0.0741]
[1729624214770,0.074101,67507.0,67506.0,0.1841]
[1729624215178,0.08548213,67510.0,67506.0,0.11]
[1729624215381,0.15957813,67510.0,67509.0,0.184097]
[1729624215975,0.09817813,67510.0,67509.0,0.184097]
[1729624216980,0.09817813,67510.0,67509.0,0.24315497]
[1729624217692,0.02408213,67510.0,67509.0,0.294097]
[1729624217979,0.00088,67526.0,67510.0,0.518455]
[1729624218174,0.074078,67526.0,67525.0,0.184078]
[1729624218479,0.074078,67526.0,67525.0,0.074078]
[1729624218681,0.074078,67526.0,67525.0,0.13302823]
[1729624219283,0.07629983,67527.0,67526.0,0.074078]
[1729624219488,0.00222183,67527.0,67524.0,0.16895023]
[1729624219785,0.074079,67525.0,67524.0,0.24303123]
[1729624219988,0.00222183,67527.0,67526.0,0.074078]
[1729624223188,0.07629883,67527.0,67526.0,0.074078]
[1729624223689,0.074086,67519.0,67517.0,0.11]
[1729624223990,0.11222183,67527.0,67517.0,0.074087]
[1729624223991,0.074087,67518.0,67517.0,0.074087]
[1729624224689,0.074089,67516.0,67515.0,0.11]
[1729624225786,0.074089,67516.0,67515.0,0.18409]
[1729624226397,0.074089,67516.0,67515.0,0.24409]
[1729624229789,0.074089,67519.0,67518.0,0.074085]
[1729624229989,0.074089,67519.0,67518.0,0.244085]
[1729624233099,0.074089,67519.0,67518.0,0.30300369]
[1729624233292,0.074089,67519.0,67518.0,0.244085]
[1729624234500,0.074082,67525.0,67524.0,0.074079]
[1729624234701,0.074082,67525.0,67524.0,0.28828073]
[1729624236202,0.074082,67525.0,67524.0,0.244079]
[1729624237898,0.02662886,67527.0,67524.0,0.17]
[1729624238105,0.10070586,67527.0,67526.0,0.11831119]
[1729624238298,0.10070586,67527.0,67526.0,0.074078]
[1729624239105,0.10070586,67527.0,67524.0,0.17]
[1729624239293,0.10070586,67527.0,67526.0,0.074078]
[1729624239499,0.15763203,67527.0,67526.0,0.074078]
[1729624240001,0.10070586,67527.0,67526.0,0.074078]
[1729624240200,0.074079,67525.0,67524.0,0.17]
[1729624241503,0.13076834,67525.0,67524.0,0.17]
[1729624241707,0.13076834,67525.0,67524.0,0.244081]
[1729624241902,0.13077714,67525.0,67524.0,0.244081]
[1729624247201,0.074079,67525.0,67524.0,0.41231617]
[1729624247611,0.02662886,67527.0,67524.0,0.41231617]
[1729624247811,0.02662886,67527.0,67526.0,0.16246641]
[1729624248009,0.10070586,67527.0,67526.0,0.24231317]
[1729624248209,0.10070586,67527.0,67526.0,0.15392476]
[1729624248407,0.10070586,67527.0,67526.0,0.26392476]
[1729624249308,0.02662886,67527.0,67526.0,0.26392476]
[1729624249506,0.02662886,67527.0,67526.0,0.3589671]
[1729624249908,0.00222183,67527.0,67526.0,0.3589671]
[1729624250110,0.00222183,67527.0,67526.0,0.35890222]
[1729624250309,0.00222183,67527.0,67526.0,0.35884592]
[1729624250611,0.07629883,67527.0,67526.0,0.35884592]
[1729624250914,0.07629883,67527.0,67526.0,0.26392476]
[1729624251318,0.07629883,67527.0,67526.0,0.26375308]
[1729624254216,0.13327126,67527.0,67526.0,0.184078]
[1729624255812,0.19960544,67527.0,67526.0,0.184078]
[1729624256321,0.19976624,67527.0,67526.0,0.184078]
[1729624260012,0.13343198,67527.0,67526.0,0.184078]
[1729624260623,0.13345937,67527.0,67526.0,0.184078]
[1729624262126,0.07629883,67527.0,67526.0,0.263517]
[1729624263309,0.07629883,67527.0,67526.0,0.153517]
[1729624263516,0.07629883,67527.0,67526.0,0.189439]
[1729624264011,0.07629883,67527.0,67526.0,0.263517]
[1729624264217,0.07629883,67527.0,67526.0,0.26352203]
[1729624264414,0.07629883,67527.0,67526.0,0.35821538]
[1729624265014,0.07629883,67527.0,67526.0,0.26352203]
[1729624270723,0.07629883,67527.0,67526.0,0.35234598]
[1729624271719,0.07629883,67527.0,67526.0,0.26352203]
[1729624272934,0.07629883,67527.0,67526.0,0.35815665]
[1729624273648,0.07629883,67527.0,67526.0,0.45271006]
[1729624273948,0.0332,67537.0,67526.0,0.46794471]
[1729624274151,0.074066,67537.0,67536.0,0.184067]
[1729624274343,0.074066,67537.0,67536.0,0.26344678]
[1729624274547,0.074066,67537.0,67536.0,0.35737406]
[1729624277156,0.13217616,67537.0,67536.0,0.13218334]
[1729624277353,0.13217616,67537.0,67536.0,0.184067]
[1729624278450,0.05764603,67537.0,67536.0,0.184067]
[1729624279858,0.07406,67543.0,67536.0,0.184067]
[1729624280056,0.12453545,67542.0,67538.0,0.3608]
[1729624280251,0.12453545,67541.0,67540.0,0.074063]
[1729624280552,0.05762737,67541.0,67540.0,0.074063]
[1729624280765,0.12495339,67542.0,67538.0,0.3608]
[1729624280952,0.05782077,67541.0,67538.0,0.3608]
[1729624281154,0.05782077,67540.0,67539.0,0.074064]
[1729624281958,0.13188377,67540.0,67539.0,0.184064]
[1729624282453,0.13188377,67540.0,67539.0,0.074064]
[1729624282763,0.13188377,67540.0,67539.0,0.184064]
[1729624283257,0.13185621,67540.0,67539.0,0.184064]
[1729624284263,0.074063,67540.0,67539.0,0.184064]
[1729624289849,0.074066,67538.0,67537.0,0.074065]
[1729624290054,0.184066,67538.0,67537.0,0.074065]
[1729624294256,0.074066,67538.0,67537.0,0.074065]
[1729624294857,0.11,67539.0,67536.0,0.07388286]
[1729624295062,0.11,67539.0,67531.0,0.45109944]
[1729624295063,0.074064,67540.0,67539.0,0.074063]
[1729624296159,0.184064,67540.0,67539.0,0.074063]
[1729624296563,0.074064,67540.0,67539.0,0.184063]
[1729624296969,0.434864,67540.0,67539.0,0.184063]
[1729624306873,0.074064,67540.0,67539.0,0.184063]
[1729624307074,0.434864,67540.0,67532.0,0.04435465]
[1729624307366,0.074068,67536.0,67535.0,0.074068]
[1729624307571,0.074068,67536.0,67535.0,0.24754656]
[1729624309171,0.3608,67540.0,67535.0,0.28347856]
[1729624309373,0.074065,67539.0,67538.0,0.074064]
[1729624309578,0.074065,67539.0,67538.0,0.15320706]
[1729624311976,0.074065,67539.0,67538.0,0.15327199]
[1729624313075,0.434865,67539.0,67538.0,0.15327199]
[1729624313480,0.434865,67539.0,67538.0,0.24773037]
[1729624313679,0.434865,67539.0,67538.0,0.15327199]
[1729624314373,0.434865,67539.0,67538.0,0.074064]
[1729624314586,0.3608,67539.0,67538.0,0.184064]
[1729624319180,0.074064,67540.0,67539.0,0.074064]
[1729624319377,0.434864,67540.0,67539.0,0.074064]
[1729624321377,0.074064,67540.0,67539.0,0.11849768]
[1729624321584,0.074064,67540.0,67539.0,0.074064]
[1729624322187,0.074064,67540.0,67539.0,0.11849799]
[1729624322486,0.074064,67540.0,67539.0,0.24773475]
[1729624325185,0.3608,67542.0,67539.0,0.24773475]
[1729624325386,0.3608,67542.0,67541.0,0.074062]
[1729624325577,0.3608,67542.0,67541.0,0.24773032]
[1729624325776,0.3608,67542.0,67541.0,0.35773032]
[1729624326380,0.3608,67542.0,67541.0,0.26329274]
[1729624326582,0.3608,67542.0,67541.0,0.35763784]
[1729624326783,0.02376385,67543.0,67541.0,0.71843784]
[1729624327090,0.07401924,67550.0,67549.0,0.074053]
[1729624327285,0.07401924,67550.0,67549.0,0.35762884]
[1729624329195,0.07401924,67550.0,67549.0,0.26328374]
[1729624329494,0.07401924,67550.0,67549.0,0.184053]
[1729624331084,0.14807124,67550.0,67549.0,0.074053]
[1729624331590,0.074055,67548.0,67546.0,0.11]
[1729624331894,0.074055,67548.0,67547.0,0.074055]
[1729624332287,0.18401924,67550.0,67549.0,0.074053]
[1729624332489,0.18401924,67550.0,67546.0,0.11]
[1729624332793,0.07401924,67550.0,67549.0,0.184053]
[1729624332995,0.14807124,67550.0,67549.0,0.184053]
[1729624335293,0.18401924,67550.0,67545.0,0.11]
[1729624335497,0.074055,67548.0,67546.0,0.074056]
[1729624335994,0.074055,67548.0,67547.0,0.11]
[1729624336384,0.074055,67548.0,67547.0,0.184055]
[1729624337497,0.074055,67548.0,67547.0,0.26318393]
[1729624338994,0.074055,67548.0,67547.0,0.184055]
[1729624339195,0.074055,67548.0,67547.0,0.26318942]
[1729624343404,0.074055,67548.0,67547.0,0.35185752]
[1729624343805,0.074055,67548.0,67547.0,0.35258972]
[1729624344211,0.074055,67548.0,67547.0,0.26392162]
[1729624344612,0.074055,67548.0,67547.0,0.184055]
[1729624352514,0.434855,67548.0,67547.0,0.184055]
[1729624352828,0.434855,67548.0,67547.0,0.35907148]
[1729624353622,0.434855,67548.0,67547.0,0.35902372]
[1729624356617,0.3608,67548.0,67547.0,0.46257544]
[1729624356820,0.3608,67548.0,67547.0,0.57310205]
[1729624357019,0.3608,67548.0,67547.0,0.46310205]
[1729624357221,0.14807224,67550.0,67549.0,0.074053]
[1729624357525,0.14807224,67550.0,67549.0,0.35902172]
[1729624358029,0.25807224,67550.0,67549.0,0.07982289]
[1729624358323,0.14807224,67550.0,67549.0,0.24295494]
[1729624358516,0.14807224,67550.0,67549.0,0.15408999]
[1729624360324,0.14807224,67550.0,67549.0,0.24934059]
[1729624360825,0.14807224,67550.0,67549.0,0.24921343]
[1729624363031,0.14807224,67550.0,67549.0,0.32911356]
[1729624363325,0.14807224,67550.0,67549.0,0.24920321]
[1729624366824,0.14807224,67550.0,67549.0,0.074053]
[1729624368625,0.14807224,67550.0,67549.0,0.184053]
[1729624369422,0.07401924,67550.0,67549.0,0.184053]
[1729624369627,0.14807124,67550.0,67549.0,0.184053]
[1729624371229,0.074056,67546.0,67545.0,0.11849339]
[1729624371633,0.074056,67546.0,67545.0,0.22849339]
[1729624371828,0.074054,67549.0,67548.0,0.074053]
[1729624372130,0.074054,67549.0,67548.0,0.184053]
[1729624374843,0.074054,67549.0,67548.0,0.3588098]
[1729624375342,0.074054,67549.0,67548.0,0.07972621]
[1729624375645,0.074054,67549.0,67548.0,0.15378021]
[1729624376034,0.074054,67549.0,67548.0,0.07972621]
[1729624376339,0.184054,67549.0,67548.0,0.07972621]
[1729624376526,0.357154,67549.0,67548.0,0.07528185]
[1729624376726,0.247154,67549.0,67548.0,0.07528185]
[1729624376931,0.357154,67549.0,67547.0,0.08890229]
[1729624377131,0.184054,67548.0,67546.0,0.08890229]
[1729624377435,0.184055,67547.0,67546.0,0.08890229]
[1729624378236,0.184055,67547.0,67539.0,0.11]
[1729624378237,0.074056,67546.0,67545.0,0.08890229]
[1729624378435,0.184056,67546.0,67545.0,0.08890229]
[1729624379234,0.184056,67546.0,67545.0,0.08884814]
[1729624379437,0.074063,67540.0,67539.0,0.11]
[1729624379743,0.074063,67540.0,67539.0,0.20524225]
[1729624382436,0.074063,67540.0,67539.0,0.20530182]
[1729624385044,0.074063,67540.0,67539.0,0.27936582]
[1729624386135,0.074063,67540.0,67539.0,0.16936582]
[1729624386643,0.074063,67540.0,67539.0,0.27936582]
[1729624387445,0.09825533,67540.0,67539.0,0.27936582]
[1729624389738,0.09825533,67540.0,67539.0,0.184064]
[1729624396740,0.09825533,67540.0,67539.0,0.35903331]
[1729624397842,0.434861,67543.0,67542.0,0.074061]
[1729624398042,0.434861,67543.0,67542.0,0.26388416]
[1729624398641,0.45981491,67543.0,67542.0,0.11582376]
[1729624398845,0.09901491,67543.0,67542.0,0.11582376]
[1729624399453,0.09901491,67543.0,67542.0,0.18988476]
[1729624399854,0.09901491,67543.0,67542.0,0.184061]
[1729624401655,0.20901491,67543.0,67542.0,0.074061]
[1729624403451,0.20901491,67543.0,67542.0,0.16856776]
[1729624404849,0.20901491,67543.0,67542.0,0.074061]
[1729624405356,0.074062,67541.0,67540.0,0.11]
[1729624406157,0.074062,67541.0,67540.0,0.15442768]
[1729624406353,0.074062,67541.0,67540.0,0.22849068]
[1729624406859,0.074062,67541.0,67540.0,0.184063]
[1729624408460,0.074062,67541.0,67540.0,0.074063]
[1729624409659,0.074062,67541.0,67540.0,0.184063]
[1729624411858,0.074062,67541.0,67540.0,0.27869151]
[1729624413550,0.074062,67541.0,67540.0,0.35807769]
[1729624414460,0.074062,67541.0,67540.0,0.35807925]
[1729624417654,0.074062,67541.0,67540.0,0.28401625]
[1729624417859,0.074062,67541.0,67540.0,0.3938733]
[1729624418167,0.074062,67541.0,67540.0,0.4679363]
[1729624419863,0.074062,67541.0,67540.0,0.184063]
[1729624420056,0.13153993,67541.0,67540.0,0.184063]
[1729624420267,0.074062,67541.0,67540.0,0.184063]
[1729624425765,0.074062,67541.0,67540.0,0.11]
[1729624426166,0.074062,67541.0,67540.0,0.184063]
[1729624426968,0.074062,67541.0,67540.0,0.35838941]
[1729624427366,0.02495391,67543.0,67540.0,0.64512641]
[1729624427571,0.4232,67560.0,67549.0,0.074053]
[1729624427770,0.4232,67560.0,67549.0,0.93220971]
[1729624427771,0.074046,67556.0,67549.0,0.93220971]
[1729624427966,0.02610343,67555.0,67549.0,0.82851372]
[1729624428166,0.02610343,67555.0,67549.0,0.83314503]
[1729624428566,0.02610343,67555.0,67549.0,0.82738911]
[1729624428771,0.02610343,67555.0,67549.0,0.82574354]
[1729624429471,0.02610343,67555.0,67549.0,0.72216515]
[1729624431079,0.02610343,67555.0,67549.0,0.7219328]
[1729624431571,0.02610343,67555.0,67549.0,0.72193276]
[1729624432173,0.02610343,67555.0,67549.0,0.71730149]
[1729624432374,0.02610343,67555.0,67549.0,0.72193276]
[1729624433271,0.02610343,67555.0,67549.0,0.74602252]
[1729624434880,0.02610343,67555.0,67549.0,0.57357403]
[1729624436277,0.02610343,67555.0,67549.0,0.49952103]
[1729624436278,0.00222119,67555.0,67549.0,0.49952103]
[1729624436477,0.00222119,67555.0,67549.0,0.57357403]
[1729624436684,0.00222119,67555.0,67549.0,0.58098406]
[1729624437383,0.07626819,67555.0,67549.0,0.58098406]
[1729624439788,0.074047,67555.0,67549.0,0.58098406]
[1729624440977,0.02421955,67556.0,67549.0,0.58098406]
[1729624441178,0.074049,67553.0,67549.0,0.22018406]
[1729624441377,0.074049,67553.0,67549.0,0.22018479]
[1729624441581,0.07405,67552.0,67549.0,0.22018479]
[1729624441781,0.07405,67552.0,67549.0,0.20814276]
[1729624441977,0.07405,67552.0,67549.0,0.29964164]
[1729624443670,0.074051,67551.0,67549.0,0.18964164]
[1729624443875,0.074051,67551.0,67549.0,0.28759997]
[1729624444082,0.074051,67551.0,67549.0,0.29964166]
[1729624445276,0.074051,67551.0,67549.0,0.28759997]
[1729624446093,0.11,67554.0,67549.0,0.28759997]
[1729624446094,0.14807124,67550.0,67549.0,0.26351021]
[1729624446275,0.61887124,67550.0,67549.0,0.07945721]
[1729624446476,0.074054,67548.0,67547.0,0.07388868]
[1729624446783,0.074055,67547.0,67545.0,0.07388868]
[1729624446985,0.184056,67546.0,67545.0,0.07388868]
[1729624447283,0.184056,67546.0,67544.0,0.07388868]
[1729624447284,0.074058,67545.0,67544.0,0.07388868]
[1729624447484,0.184058,67545.0,67544.0,0.15381873]
[1729624448284,0.184058,67545.0,67544.0,0.15383341]
[1729624448582,0.184058,67545.0,67544.0,0.07390336]
[1729624448785,0.074059,67544.0,67543.0,0.07390336]
[1729624448979,0.434859,67544.0,67543.0,0.0800098]
[1729624449185,0.434859,67544.0,67543.0,0.15391839]
[1729624449688,0.434859,67544.0,67543.0,0.07390859]
[1729624449875,0.434859,67544.0,67543.0,0.16870953]
[1729624451096,0.434859,67544.0,67543.0,0.16871542]
[1729624451589,0.434859,67544.0,67543.0,0.08003095]
[1729624452589,0.434859,67544.0,67543.0,0.16871542]
[1729624453785,0.434859,67544.0,67543.0,0.08003095]
[1729624453983,0.434859,67544.0,67543.0,0.15409095]
[1729624454386,0.434859,67544.0,67543.0,0.08003095]
[1729624454681,0.434859,67544.0,67543.0,0.15409095]
[1729624456295,0.434859,67544.0,67543.0,0.08003095]
[1729624456995,0.434859,67544.0,67543.0,0.15395383]
[1729624456996,0.544859,67544.0,67543.0,0.15395383]
[1729624457292,0.074066,67537.0,67535.0,0.00222048]
[1729624457494,0.215867,67536.0,67535.0,0.00222048]
[1729624457695,0.245867,67536.0,67535.0,0.00222048]
[1729624457902,0.275967,67536.0,67535.0,0.00222048]
[1729624465196,0.29979681,67536.0,67535.0,0.00222048]
[1729624467196,0.29979681,67536.0,67535.0,0.07606945]
[1729624467395,0.29979681,67536.0,67535.0,0.00222048]
[1729624467595,0.29979681,67536.0,67535.0,0.07606945]
[1729624468305,0.29979681,67536.0,67535.0,0.00222048]
[1729624468607,0.29979681,67536.0,67535.0,0.07606945]
[1729624470303,0.29979681,67536.0,67535.0,0.00222048]
[1729624471501,0.29979681,67536.0,67535.0,0.07606945]
[1729624471900,0.29979681,67536.0,67535.0,0.00222048]
[1729624472293,0.40979681,67536.0,67535.0,0.07606945]
[1729624472498,0.40979681,67536.0,67535.0,0.00222048]
[1729624473202,0.52227681,67536.0,67535.0,0.00222048]
[1729624473701,0.88307681,67536.0,67535.0,0.00222048]
[1729624475006,0.88307681,67536.0,67535.0,0.07606945]
[1729624475399,0.52049681,67536.0,67535.0,0.08280866]
[1729624475605,0.56869681,67536.0,67535.0,0.08058818]
[1729624475906,0.56869681,67536.0,67535.0,0.19058818]
[1729624476203,0.56869681,67536.0,67535.0,0.08058818]
[1729624480302,0.49462981,67536.0,67532.0,0.074071]
[1729624480506,0.11,67533.0,67532.0,0.074071]
[1729624481502,0.184071,67533.0,67532.0,0.074071]
[1729624485408,0.184071,67533.0,67532.0,0.13326498]
[1729624486295,0.184071,67533.0,67532.0,0.074071]
[1729624487202,0.184071,67533.0,67532.0,0.25109086]
[1729624489808,0.184071,67533.0,67532.0,0.2510871]
[1729624493808,0.184071,67533.0,67532.0,0.1770161]
[1729624494410,0.184071,67533.0,67532.0,0.2510881]
[1729624494607,0.11,67533.0,67532.0,0.17697461]
[1729624494807,0.184071,67533.0,67532.0,0.17697461]
[1729624495104,0.074072,67532.0,67531.0,0.074072]
[1729624500213,0.22,67533.0,67530.0,0.05927852]
[1729624500415,0.184073,67531.0,67530.0,0.05927852]
[1729624500619,0.184073,67531.0,67525.0,0.032]
[1729624500620,0.184073,67531.0,67527.0,0.0444682]
[1729624500928,0.4708,67528.0,67524.0,0.0444682]
[1729624501112,0.184079,67525.0,67524.0,0.074081]
[1729624501318,0.184079,67525.0,67524.0,0.1185492]
[1729624501821,0.184079,67525.0,67524.0,0.11853164]
[1729624502224,0.184079,67525.0,67524.0,0.25174512]
[1729624502819,0.184079,67525.0,67524.0,0.25177636]
[1729624503028,0.074079,67525.0,67524.0,0.25177636]
[1729624503327,0.184079,67525.0,67524.0,0.25177636]
[1729624507526,0.20838691,67525.0,67524.0,0.25177636]
[1729624509518,0.20838691,67525.0,67524.0,0.15514782]
[1729624510219,0.20838691,67525.0,67524.0,0.074081]
[1729624517329,0.20838691,67525.0,67524.0,0.1551269]
[1729624522230,1.70838691,67525.0,67524.0,0.1551269]
[1729624524439,1.70838691,67525.0,67524.0,0.074081]
[1729624531243,1.59838691,67525.0,67524.0,0.074081]
[1729624531443,1.70838691,67525.0,67524.0,0.074081]
[1729624531638,0.20838691,67525.0,67524.0,0.074081]
[1729624534347,0.20838691,67525.0,67524.0,0.15485253]
[1729624539447,0.20838691,67525.0,67524.0,0.25112693]
[1729624542145,0.09838691,67525.0,67524.0,0.25112693]
[1729624542452,0.20838691,67525.0,67524.0,0.25112693]
[1729624543552,0.13430791,67525.0,67524.0,0.25112693]
[1729624544054,0.11,67525.0,67524.0,0.25112693]
[1729624547048,0.02375781,67526.0,67525.0,0.074079]
[1729624547250,0.11,67526.0,67525.0,0.25112493]
[1729624547452,0.11,67526.0,67525.0,0.11853191]
[1729624547959,0.11,67526.0,67525.0,0.074079]
[1729624548656,0.11,67526.0,67525.0,0.11850427]
[1729624550154,0.1337526,67526.0,67525.0,0.11850427]
[1729624551160,1.86156,67529.0,67528.0,0.074076]
[1729624551352,1.86156,67529.0,67528.0,0.184076]
[1729624551353,0.3608,67529.0,67528.0,0.184076]
[1729624551551,0.36156,67535.0,67528.0,0.66424]
[1729624551752,0.3608,67547.0,67534.0,0.18407]
[1729624551955,0.074062,67541.0,67538.0,0.184065]
[1729624552353,0.11,67543.0,67538.0,0.184065]
[1729624552560,0.02445406,67540.0,67538.0,0.184065]
[1729624552758,0.13445406,67540.0,67538.0,0.074065]
[1729624553054,0.07628564,67539.0,67538.0,0.074065]
[1729624553256,0.07628564,67539.0,67535.0,0.0314]
[1729624553457,0.11,67536.0,67532.0,0.11849762]
[1729624553651,0.184071,67533.0,67532.0,0.1184301]
[1729624554055,0.074071,67533.0,67532.0,0.074071]
[1729624554257,0.184071,67533.0,67532.0,0.074071]
[1729624554457,0.184071,67533.0,67532.0,0.24992831]
[1729624555762,0.184071,67533.0,67532.0,0.08022828]
[1729624555763,0.294071,67533.0,67532.0,0.08022828]
[1729624556667,1.794071,67533.0,67532.0,0.15414971]
[1729624556961,1.794071,67533.0,67532.0,0.07392143]
[1729624557760,1.794071,67533.0,67532.0,0.15449719]
[1729624557966,1.81787422,67533.0,67532.0,0.15449719]
[1729624560270,1.81787422,67533.0,67532.0,0.07392143]
[1729624560864,1.92787422,67533.0,67532.0,0.1545181]
[1729624561175,0.074077,67527.0,67526.0,0.08868936]
[1729624561367,0.074077,67527.0,67526.0,0.16939669]
[1729624561368,0.434877,67527.0,67526.0,0.16939669]
[1729624561569,0.544877,67527.0,67526.0,0.16939669]
[1729624561767,2.044877,67527.0,67526.0,0.16939669]
[1729624562266,1.934877,67527.0,67526.0,0.16939669]
[1729624562466,2.044877,67527.0,67526.0,0.16939669]
[1729624562870,0.544877,67527.0,67526.0,0.16939669]
[1729624565073,0.544877,67527.0,67526.0,0.08070733]
[1729624565270,0.544877,67527.0,67526.0,0.16939669]
[1729624565774,0.544877,67527.0,67526.0,0.08070733]
[1729624568773,0.434877,67527.0,67526.0,0.08070733]
[1729624568975,0.544877,67527.0,67526.0,0.08070733]
[1729624569577,0.4708,67527.0,67525.0,0.074079]
[1729624569878,0.074078,67526.0,67525.0,0.074079]
[1729624571672,0.074079,67525.0,67524.0,0.22844451]
[1729624572381,0.074079,67525.0,67524.0,0.2284459]
[1729624572683,0.074079,67525.0,67524.0,0.18408]
[1729624573074,0.074079,67525.0,67524.0,0.2284459]
[1729624573280,0.184079,67525.0,67524.0,0.18408]
[1729624573981,0.184079,67525.0,67524.0,0.22844805]
[1729624575274,0.20874703,67525.0,67524.0,0.22844805]
[1729624576180,0.20874703,67525.0,67524.0,0.11844805]
[1729624576381,0.20874703,67525.0,67524.0,0.07408]
[1729624576787,0.35684032,67525.0,67524.0,0.07408]
[1729624577088,0.35684032,67525.0,67524.0,0.11844669]
[1729624577573,0.35684032,67525.0,67524.0,0.24368784]
[1729624581197,0.35684032,67525.0,67524.0,0.16960784]
[1729624581790,0.35684032,67525.0,67524.0,0.08087882]
[1729624582286,0.35684032,67525.0,67524.0,0.16960784]
[1729624583088,0.35684032,67525.0,67524.0,0.08087882]
[1729624583787,0.75356132,67525.0,67521.0,0.08880449]
[1729624583987,0.074095,67511.0,67510.0,0.0022217]
[1729624584188,0.294095,67511.0,67510.0,0.09902162]
[1729624584391,0.294095,67511.0,67510.0,0.09679992]
[1729624584692,0.294095,67511.0,67503.0,0.0315]
[1729624584693,0.074097,67509.0,67503.0,0.0315]
[1729624584878,0.074097,67509.0,67508.0,0.074098]
[1729624585080,0.184097,67509.0,67508.0,0.074098]
[1729624591297,0.074101,67506.0,67505.0,0.074101]
[1729624591594,0.184101,67506.0,67505.0,0.074101]
[1729624592198,0.11,67506.0,67505.0,0.074101]
[1729624593088,0.11,67506.0,67505.0,0.16962764]
[1729624594098,0.11,67506.0,67505.0,0.074101]
[1729624595287,0.11,67506.0,67505.0,0.16958773]
[1729624595488,0.11,67506.0,67505.0,0.074101]
[1729624595692,0.11,67506.0,67505.0,0.16955124]
[1729624595990,0.11,67506.0,67505.0,0.074101]
[1729624598190,0.11,67506.0,67505.0,0.16958747]
[1729624598590,0.11,67506.0,67505.0,0.074101]
[1729624598797,0.11,67506.0,67505.0,0.15420947]
[1729624599599,0.11,67506.0,67505.0,0.24970269]
[1729624599799,0.11,67506.0,67505.0,0.15420947]
[1729624604105,0.11,67506.0,67505.0,0.15425606]
[1729624604294,0.11,67508.0,67505.0,0.15425606]
[1729624604492,0.11,67508.0,67507.0,0.184099]
[1729624604691,0.11,67508.0,67507.0,0.26425406]
[1729624605300,0.11,67508.0,67507.0,0.35294175]
[1729624605703,0.11,67508.0,67507.0,0.26425406]
[1729624606199,0.11,67508.0,67507.0,0.35294175]
[1729624606599,0.11,67508.0,67507.0,0.26425406]
[1729624607308,0.11,67508.0,67507.0,0.35294175]
[1729624608705,0.11,67508.0,67507.0,0.26425406]
[1729624608897,0.11,67508.0,67507.0,0.26429506]
[1729624610015,0.11,67508.0,67507.0,0.15429506]
[1729624612108,0.11,67508.0,67507.0,0.25003789]
[1729624613195,0.184098,67508.0,67507.0,0.25003789]
[1729624613800,0.184098,67508.0,67507.0,0.25019417]
[1729624614795,0.184098,67508.0,67507.0,0.074099]
[1729624616115,0.184098,67508.0,67507.0,0.1544568]
[1729624617818,0.184098,67508.0,67507.0,0.25019712]
[1729624618114,0.13464631,67509.0,67508.0,0.074098]
[1729624618309,0.11,67509.0,67508.0,0.1544558]
[1729624618901,0.11,67509.0,67508.0,0.15457161]
[1729624620313,0.13425653,67509.0,67508.0,0.2504796]
[1729624622815,0.31835353,67509.0,67508.0,0.08047361]
[1729624623016,0.31835353,67509.0,67508.0,0.16945216]
[1729624623223,0.31835353,67509.0,67508.0,0.16945491]
[1729624623224,1.81835353,67509.0,67508.0,0.16945491]
[1729624623518,1.81835353,67509.0,67508.0,0.08047361]
[1729624626421,1.81835353,67509.0,67508.0,0.15454053]
[1729624626824,1.81835353,67509.0,67508.0,0.15498806]
[1729624627719,1.81935353,67509.0,67508.0,0.07406692]
[1729624628023,1.81935353,67509.0,67504.0,0.0889813]
[1729624628326,1.59935353,67509.0,67508.0,0.07405812]
[1729624628514,0.074098,67508.0,67507.0,0.07405812]
[1729624628718,0.074098,67508.0,67507.0,0.15499861]
[1729624629021,0.074106,67501.0,67500.0,0.0889813]
[1729624629220,0.656186,67501.0,67500.0,0.08107876]
[1729624629724,2.156186,67501.0,67500.0,0.08107876]
[1729624631223,2.18075242,67501.0,67500.0,0.08107876]
[1729624631620,2.10664642,67501.0,67500.0,0.08059948]
[1729624631821,2.18075242,67501.0,67500.0,0.08059948]
[1729624632227,2.10664642,67501.0,67498.0,0.074109]
[1729624632526,0.074107,67500.0,67499.0,0.08060666]
[1729624635623,1.99740642,67501.0,67498.0,0.074109]
[1729624635624,1.88612642,67501.0,67500.0,0.074107]